[Event "Cesenatico Open 2019"]
[Site "Cesenatico"]
[Date "2019.09.04"]
[Round "2"]
[White "Drei, Andrea"]
[Black "Loiacono, Antonio"]
[Result "0-1"]
[ECO "C70"]
[WhiteElo "2137"]
[BlackElo "2282"]
[Annotator "ChessBase"]
[PlyCount "122"]
[EventDate "2019.09.01"]
[EventType "swiss"]
[EventCountry "ITA"]
[SourceTitle "playchess.com"]
[Source "ChessBase"]
[SourceQuality "1"]
[TimeControl "40/6000:900"]

1. e4 {[%emt 0:00:00]} e5 {[%emt 0:00:00]} 2. Nf3 {[%emt 0:00:00]} Nc6 {[%emt 0:01:00]} 3. Bb5 {[%emt 0:01:00]} g6 {[%emt 0:00:00]} 4. c3 {[%emt 0:00:00]} a6 5. Ba4 {[%emt 0:00:00]} Bg7 {[%emt 0:00:00]} 6. d4 {[%emt 0:00:00]} exd4 {[%emt 0:00:00]} 7. cxd4 {[%emt 0:00:00]} b5 {[%emt 0:00:00]} 8. Bc2 {[%emt 0:00:00]} d6 {[%emt 0:00:00]} 9. h3 {[%emt 0:01:00]} Nge7 {[%emt 0:00:00]} 10. O-O {[%emt 0:00:00]} O-O {[%emt 0:00:00]} 11. Nc3 {[%emt 0:04:00]} Bb7 12. Be3 {[%emt 0:04:00]} Na5 {[%emt 0:06:00]} 13. Qc1 {[%emt 0:06:00]} Nc4 14. Bh6 {[%emt 0:02:00]} c5 {[%emt 0:09:00]} 15. Bxg7 {[%emt 0:00:00]} Kxg7 {[%emt 0:00:00]} 16. dxc5 {[%emt 0:11:00]} dxc5 {[%emt 0:03:00]} 17. b3 {[%emt 0:00:00]} Nb6 {[%emt 0:02:00]} 18. a4 {[%emt 0:23:00]} b4 19. Rd1 {[%emt 0:02:00]} Qc7 {[%emt 0:12:00]} 20. a5 {[%emt 0:04:00]} Nd7 21. Ne2 {[%emt 0:02:00]} Rad8 {[%emt 0:08:00]} 22. h4 {[%emt 0:00:00]} Ne5 {[%emt 0:08:00]} 23. Qb2 {[%emt 0:21:56]} f6 {[%emt 0:01:00]} 24. Nxe5 {[%emt 0:00:00]} Qxe5 {[%emt 0:01:00]} 25. Qxe5 {[%emt 0:00:40]} fxe5 {[%emt 0:00:00]} 26. f3 {[%emt 0:01:21]} Nc6 {[%emt 0:00:00]} 27. Kf2 {[%emt 0:00:00]} Kf6 {[%emt 0:04:00]} 28. Ke3 {[%emt 0:08:06]} Rxd1 {[%emt 0:01:00]} 29. Bxd1 {[%emt 0:00:00]} Rd8 {[%emt 0:02:00]} 30. Bc2 {[%emt 0:00:12]} Bc8 {[%emt 0:04:00]} 31. Bd3 {[%emt 0:01:29]} Be6 {[%emt 0:01:00]} 32. Nc1 {[%emt 0:00:00]} Nd4 {[%emt 0:01:00]} 33. Rb1 {[%emt 0:03:30]} Rd6 {[%emt 0:00:00]} 34. Rb2 {[%emt 0:00:00]} h6 {[%emt 0:02:00]} 35. Bf1 {[%emt 0:00:08]} g5 36. hxg5+ {[%emt 0:00:00]} hxg5 {[%emt 0:01:00]} 37. Bd3 Rc6 {[%emt 0:03:00]} 38. g3 {[%emt 0:00:34]} Bf7 {[%emt 0:28:31]} 39. Rh2 {[%emt 0:00:35]} Kg7 {[%emt 0:00:00]} 40. Rb2 {[%emt 0:00:00]} Rh6 {[%emt 0:00:00]} 41. Bc4 {[%emt 0:04:31]} Rh3 {[%emt 0:00:00]} 42. Bxf7 {[%emt 0:00:00]} Kxf7 {[%emt 0:00:00]} 43. Nd3 {[%emt 0:02:53]} Rxg3 {[%emt 0:00:00]} 44. Nxe5+ {[%emt 0:00:01]} Ke6 {[%emt 0:00:00]} 45. Kf2 {[%emt 0:00:20]} Rh3 {[%emt 0:00:00]} 46. Kg2 {[%emt 0:00:00]} g4 {[%emt 0:15:03]} 47. f4 {[%emt 0:07:18]} Re3 {[%emt 0:00:00]} 48. Nxg4 {[%emt 0:00:00]} Rxe4 {[%emt 0:00:00]} 49. Kg3 {[%emt 0:00:07]} Ne2+ 50. Kf3 {[%emt 0:00:22]} Rxf4+ {[%emt 0:00:00]} 51. Kxe2 {[%emt 0:00:00]} Rxg4 {[%emt 0:00:00]} 52. Kf3 {[%emt 0:00:00]} Rh4 {[%emt 0:00:00]} 53. Rg2 Kd5 {[%emt 0:00:00]} 54. Rg6 {[%emt 0:00:00]} Rh3+ {[%emt 0:00:00]} 55. Ke2 {[%emt 0:00:00]} Rxb3 {[%emt 0:00:00]} 56. Rxa6 {[%emt 0:00:00]} Ra3 {[%emt 0:00:00]} 57. Kd2 {[%emt 0:00:00]} Kc4 {[%emt 0:00:00]} 58. Ra8 {[%emt 0:00:11]} Ra2+ {[%emt 0:00:00]} 59. Ke3 {[%emt 0:00:09]} b3 {[%emt 0:00:00]} 60. a6 {[%emt 0:00:00]} b2 {[%emt 0:00:00]} 61. Rb8 {[%emt 0:00:00]} Kc3 {[%emt 0:00:00]} 0-1

[Event "Cesenatico Open 2019"]
[Site "Cesenatico"]
[Date "2019.09.04"]
[Round "2"]
[White "Cocconcelli, Lorenzo"]
[Black "Schacher, Gerd"]
[Result "0-1"]
[ECO "A58"]
[WhiteElo "2113"]
[BlackElo "2311"]
[Annotator "ChessBase"]
[PlyCount "80"]
[EventDate "2019.09.01"]
[EventType "swiss"]
[EventCountry "ITA"]
[SourceTitle "playchess.com"]
[Source "ChessBase"]
[SourceQuality "1"]
[TimeControl "40/6000:900"]

1. d4 {[%emt 0:06:00]} g6 {[%emt 1:40:00]} 2. Nf3 {[%emt 0:00:00]} Bg7 {[%emt 0:00:00]} 3. c4 {[%emt 0:00:00]} c5 {[%emt 0:00:00]} 4. d5 {[%emt 0:00:00]} d6 {[%emt 0:00:00]} 5. g3 {[%emt 0:00:00]} b5 {[%emt 0:00:00]} 6. cxb5 {[%emt 0:00:00]} a6 {[%emt 0:00:00]} 7. bxa6 {[%emt 0:00:00]} Bxa6 {[%emt 0:00:00]} 8. Bg2 {[%emt 0:00:00]} Nd7 {[%emt 0:00:00]} 9. Nc3 {[%emt 0:00:00]} Ngf6 {[%emt 0:00:00]} 10. O-O Nb6 {[%emt 0:00:00]} 11. Re1 {[%emt 0:00:00]} O-O {[%emt 0:00:00]} 12. e4 {[%emt 0:02:00]} Nfd7 {[%emt 0:00:00]} 13. Qc2 {[%emt 0:01:00]} Nc4 14. Bf1 {[%emt 0:08:00]} Qa5 {[%emt 0:00:00]} 15. Bxc4 {[%emt 0:01:00]} Bxc4 {[%emt 0:00:00]} 16. Bf4 {[%emt 0:15:00]} Nb6 {[%emt 0:00:00]} 17. Nd2 {[%emt 0:00:00]} Qa6 {[%emt 0:00:00]} 18. a4 {[%emt 0:00:00]} Rfb8 {[%emt 0:00:00]} 19. Ra3 {[%emt 0:00:00]} Bd3 {[%emt 0:00:00]} 20. Qc1 {[%emt 0:00:00]} Qa5 {[%emt 0:00:00]} 21. e5 {[%emt 0:00:00]} Rd8 {[%emt 0:00:00]} 22. Rb3 {[%emt 0:00:00]} Qa6 {[%emt 0:00:00]} 23. Re3 {[%emt 0:00:00]} c4 {[%emt 0:00:00]} 24. Ra3 {[%emt 0:00:00]} dxe5 {[%emt 0:00:00]} 25. Bxe5 {[%emt 0:00:00]} Bh6 {[%emt 0:00:00]} 26. Bf4 {[%emt 0:00:00]} Bxf4 {[%emt 0:00:00]} 27. gxf4 {[%emt 0:00:00]} Nxd5 {[%emt 0:00:00]} 28. Nxd5 {[%emt 0:00:00]} Rxd5 {[%emt 0:00:00]} 29. Nf3 {[%emt 0:00:00]} Qf6 {[%emt 0:00:00]} 30. Re5 {[%emt 0:00:00]} Rd7 {[%emt 0:00:00]} 31. Qe3 {[%emt 0:00:00]} Rb7 {[%emt 0:00:00]} 32. b3 {[%emt 0:00:00]} Qd6 {[%emt 0:00:00]} 33. Qc1 {[%emt 0:00:00]} cxb3 {[%emt 0:00:00]} 34. Qb2 {[%emt 0:00:00]} Bc4 {[%emt 0:00:00]} 35. Nd2 {[%emt 0:00:00]} Be6 {[%emt 0:00:00]} 36. f5 {[%emt 0:00:00]} Bxf5 {[%emt 0:00:00]} 37. Re3 {[%emt 0:00:00]} Rb4 {[%emt 0:00:00]} 38. Raxb3 {[%emt 0:00:00]} Rbxa4 {[%emt 0:00:00]} 39. f3 {[%emt 0:00:00]} Ra2 {[%emt 0:00:00]} 40. Nc4 {[%emt 0:00:00]} Qd1+ {[%emt 0:00:00]} 0-1

[Event "Cesenatico Open 2019"]
[Site "Cesenatico"]
[Date "2019.09.04"]
[Round "2"]
[White "Tonetto, Federico"]
[Black "Dittmar, Peter"]
[Result "1/2-1/2"]
[ECO "B18"]
[WhiteElo "1916"]
[BlackElo "2259"]
[Annotator "ChessBase"]
[PlyCount "78"]
[EventDate "2019.09.01"]
[EventType "swiss"]
[EventCountry "ITA"]
[SourceTitle "playchess.com"]
[Source "ChessBase"]
[SourceQuality "1"]
[TimeControl "40/6000:900"]

1. e4 {[%emt 0:00:00]} c6 {[%emt 0:02:00]} 2. d4 {[%emt 0:00:00]} d5 {[%emt 0:00:00]} 3. Nd2 {[%emt 0:00:00]} Qc7 {[%emt 0:00:00]} 4. Bd3 {[%emt 0:00:00]} dxe4 {[%emt 0:00:00]} 5. Nxe4 {[%emt 0:00:00]} Bf5 {[%emt 0:00:00]} 6. Nc5 {[%emt 0:03:00]} Bxd3 {[%emt 0:01:00]} 7. Nxd3 {[%emt 0:00:00]} e6 {[%emt 0:00:00]} 8. Bf4 {[%emt 0:00:00]} Bd6 {[%emt 0:00:00]} 9. Bxd6 {[%emt 0:00:00]} Qxd6 10. Qg4 {[%emt 0:00:00]} g6 {[%emt 0:00:00]} 11. Nf3 {[%emt 0:00:00]} Nf6 12. Qg5 {[%emt 0:07:00]} Nbd7 {[%emt 0:03:00]} 13. O-O {[%emt 0:00:00]} h6 {[%emt 0:01:00]} 14. Qa5 {[%emt 0:06:00]} O-O {[%emt 0:01:00]} 15. Rfe1 {[%emt 0:01:00]} Rfd8 {[%emt 0:01:00]} 16. Rad1 {[%emt 0:03:00]} b6 17. Qd2 {[%emt 0:02:00]} Kg7 {[%emt 0:03:00]} 18. Qe2 {[%emt 0:06:00]} Qc7 {[%emt 0:00:00]} 19. c3 {[%emt 0:07:00]} c5 {[%emt 0:05:00]} 20. dxc5 Nxc5 {[%emt 0:00:00]} 21. Nxc5 {[%emt 0:01:00]} Qxc5 {[%emt 0:00:00]} 22. Rd3 Rxd3 {[%emt 0:02:00]} 23. Qxd3 {[%emt 0:14:00]} Qd5 24. Qxd5 {[%emt 0:01:00]} Nxd5 {[%emt 0:00:00]} 25. Re4 {[%emt 0:04:00]} Rc8 26. Kf1 {[%emt 0:01:00]} Rc7 {[%emt 0:13:00]} 27. Ke2 {[%emt 0:00:00]} Nf6 28. Rd4 {[%emt 0:07:00]} Nd7 {[%emt 0:00:00]} 29. Nd2 {[%emt 0:12:00]} Nc5 {[%emt 0:02:00]} 30. Ne4 {[%emt 0:01:00]} Nxe4 31. Rxe4 {[%emt 0:00:00]} Kf6 {[%emt 0:01:00]} 32. Ke3 {[%emt 0:02:00]} Ke7 33. Kd3 {[%emt 0:00:00]} f5 {[%emt 0:03:00]} 34. Rc4 {[%emt 0:00:00]} Rd7+ {[%emt 0:01:00]} 35. Rd4 {[%emt 0:05:54]} Rb7 {[%emt 0:00:00]} 36. f4 {[%emt 0:00:47]} g5 {[%emt 0:00:00]} 37. g3 {[%emt 0:00:04]} Rc7 {[%emt 0:00:00]} 38. Rc4 {[%emt 0:00:57]} Rd7+ {[%emt 0:00:00]} 39. Rd4 {[%emt 0:00:00]} Rc7 {[%emt 0:00:00]} 1/2-1/2

[Event "Cesenatico Open 2019"]
[Site "Cesenatico"]
[Date "2019.09.03"]
[Round "3"]
[White "Dragojlovic, Andjelko"]
[Black "Tonetto, Federico"]
[Result "1-0"]
[ECO "A48"]
[WhiteElo "2293"]
[BlackElo "1916"]
[Annotator "NA"]
[PlyCount "117"]
[EventDate "2019.08.09"]
[EventType "swiss"]
[EventCountry "ITA"]
[SourceTitle "playchess.com"]
[Source "ChessBase"]
[SourceQuality "1"]
[TimeControl "5400+30"]

1. Nf3 {[%clk} Nf6 {[%clk} 2. d4 {[%clk} g6 {[%clk} 3. Nc3 {[%clk} d5 {[%clk} 4. Bg5 {[%clk} Bg7 5. Bxf6 {[%clk} Bxf6 {[%clk} 6. e4 dxe4 {[%clk} 7. Nxe4 {[%clk} Bg7 8. Bc4 O-O {[%clk} 9. c3 {[%clk} Nc6 {[%clk} 10. O-O {[%clk} e5 {[%clk} 11. dxe5 {[%clk} Qxd1 {[%clk} 12. Raxd1 {[%clk} Nxe5 {[%clk} 13. Nxe5 Bxe5 {[%clk} 14. Rfe1 {[%clk} Bg7 15. Ng5 Bf6 {[%clk} 16. f4 {[%clk} Bf5 {[%clk} 17. h3 {[%clk} h5 {[%emt 0:44:30]} 18. Kf2 {[%clk} Kg7 {[%clk} 19. Kf3 {[%clk} h4 {[%emt 0:03:00]} 20. Bd3 {[%clk} Bxg5 {[%emt 0:07:30]} 21. Bxf5 {[%clk} Bf6 {[%clk} 22. Be4 {[%emt 0:59:00]} Rad8 {[%emt 0:04:00]} 23. f5 {[%emt 0:00:00]} b6 {[%emt 0:03:30]} 24. Bc2 {[%emt 0:00:00]} Rxd1 {[%emt 0:01:30]} 25. Rxd1 {[%emt 0:00:00]} Rd8 {[%emt 0:00:00]} 26. Rxd8 {[%emt 0:00:00]} Bxd8 {[%emt 0:01:00]} 27. Ke4 {[%emt 0:00:00]} Be7 {[%emt 0:00:30]} 28. Kd5 {[%emt 0:00:00]} Bd6 {[%emt 0:06:30]} 29. b4 {[%emt 0:14:30]} Kf6 {[%emt 0:01:30]} 30. fxg6 {[%emt 0:00:00]} fxg6 {[%emt 0:00:30]} 31. b5 {[%emt 0:00:00]} g5 {[%emt 0:05:30]} 32. c4 {[%emt 0:00:00]} Ke7 33. Bf5 {[%emt 0:00:00]} Bf4 {[%emt 0:05:00]} 34. Kc6 {[%emt 0:00:00]} Be5 35. a4 {[%emt 0:00:00]} Bf4 {[%emt 0:01:00]} 36. Bg4 Be5 37. Be2 {[%emt 0:00:00]} Bf4 {[%emt 0:01:00]} 38. c5 Be3 {[%emt 0:03:32]} 39. Bd3 {[%emt 0:00:00]} Bxc5 {[%emt 0:00:00]} 40. a5 {[%emt 0:00:00]} Kd8 {[%emt 0:11:21]} 41. Bf5 Be3 {[%emt 0:00:00]} 42. a6 {[%emt 0:00:00]} Bf4 {[%emt 0:00:00]} 43. Kb7 {[%emt 0:00:00]} c5 {[%emt 0:01:17]} 44. bxc6 {[%emt 0:00:00]} b5 {[%emt 0:00:00]} 45. c7+ {[%emt 0:00:00]} Bxc7 {[%emt 0:01:30]} 46. Kxa7 {[%emt 0:32:46]} Be5 47. Kb7 {[%emt 0:00:00]} Bd4 {[%emt 0:02:10]} 48. a7 {[%emt 0:00:00]} Bxa7 {[%emt 0:00:03]} 49. Kxa7 {[%emt 0:00:00]} Ke7 50. Kb6 {[%emt 0:00:00]} Kf6 {[%emt 0:00:00]} 51. Bc2 g4 {[%emt 0:02:11]} 52. hxg4 {[%emt 0:00:00]} Kg5 {[%emt 0:00:00]} 53. Bd1 {[%emt 0:00:00]} b4 {[%emt 0:00:57]} 54. Kc5 b3 {[%emt 0:00:30]} 55. Bxb3 {[%emt 0:00:00]} Kxg4 {[%emt 0:00:00]} 56. Be6+ {[%emt 0:00:00]} Kg3 {[%emt 0:00:27]} 57. Bh3 {[%emt 0:00:00]} Kf4 58. Kd4 {[%emt 0:00:00]} Kg5 {[%emt 0:00:00]} 59. Ke4 {[%emt 0:00:00]} 1-0

[Event "Cesenatico Open 2019"]
[Site "Cesenatico"]
[Date "2019.09.03"]
[Round "3"]
[White "Mrdja, Milan"]
[Black "Carbone, Stefano"]
[Result "1/2-1/2"]
[ECO "B12"]
[WhiteElo "2279"]
[BlackElo "2138"]
[Annotator "NA"]
[PlyCount "44"]
[EventDate "2019.08.09"]
[EventType "swiss"]
[EventCountry "ITA"]
[SourceTitle "playchess.com"]
[Source "ChessBase"]
[SourceQuality "1"]
[TimeControl "5400+30"]

1. e4 {[%clk} c6 {[%clk} 2. d4 {[%clk} d5 {[%clk} 3. f3 {[%clk} Qb6 {[%clk} 4. Nc3 {[%clk} dxe4 {[%clk} 5. Nxe4 {[%clk} Nf6 {[%clk} 6. Nxf6+ {[%clk} exf6 {[%clk} 7. c3 {[%clk} Be6 {[%clk} 8. Ne2 {[%emt 0:45:00]} Bd6 {[%clk} 9. b3 {[%emt 0:03:30]} Qc7 {[%clk} 10. g3 {[%emt 0:01:30]} O-O {[%clk} 11. Bg2 {[%emt 0:02:30]} Re8 {[%emt 0:52:30]} 12. O-O {[%emt 0:00:30]} Na6 {[%clk} 13. Bf4 {[%emt 0:10:30]} Rad8 {[%clk} 14. Qc2 {[%emt 0:00:30]} c5 {[%clk} 15. Bxd6 Rxd6 {[%clk} 16. Rad1 {[%emt 0:04:00]} Red8 17. Qc1 {[%emt 0:08:30]} b5 {[%emt 0:00:00]} 18. dxc5 {[%emt 0:09:44]} Qxc5+ {[%emt 0:00:30]} 19. Kh1 {[%emt 0:00:10]} g6 {[%emt 0:08:30]} 20. Rxd6 {[%emt 0:00:00]} Qxd6 {[%emt 0:03:30]} 21. Nd4 {[%emt 0:05:59]} Nc7 {[%emt 0:00:30]} 22. Re1 {[%emt 0:02:48]} Bd7 {[%emt 0:09:30]} 1/2-1/2

[Event "Cesenatico Open 2019"]
[Site "Cesenatico"]
[Date "2019.09.03"]
[Round "3"]
[White "Dobboletta, Alex"]
[Black "Friedrich, Norbert"]
[Result "1/2-1/2"]
[ECO "D30"]
[WhiteElo "2176"]
[BlackElo "2306"]
[Annotator "NA"]
[PlyCount "53"]
[EventDate "2019.08.09"]
[EventType "swiss"]
[EventCountry "ITA"]
[SourceTitle "playchess.com"]
[Source "ChessBase"]
[SourceQuality "1"]
[TimeControl "5400+30"]

1. d4 {[%clk} Nf6 {[%clk} 2. c4 {[%clk} e6 {[%clk} 3. Nf3 {[%clk} d5 {[%clk} 4. e3 {[%clk} c5 5. a3 {[%clk} dxc4 {[%clk} 6. Bxc4 a6 {[%clk} 7. dxc5 {[%clk} Bxc5 {[%clk} 8. Qxd8+ Kxd8 {[%clk} 9. b4 {[%clk} Bd6 {[%clk} 10. Bb2 {[%clk} Ke7 {[%clk} 11. Ke2 {[%clk} b5 {[%clk} 12. Bd3 {[%clk} Bb7 {[%clk} 13. Nbd2 {[%clk} Nbd7 {[%clk} 14. Rhc1 {[%clk} Rac8 {[%clk} 15. Nb3 Bxf3+ {[%emt 0:42:30]} 16. gxf3 {[%clk} Ne5 17. Bd4 {[%clk} Nxd3 {[%emt 0:08:00]} 18. Kxd3 {[%clk} e5 19. Bc5 {[%emt 0:41:30]} Rhd8 {[%emt 0:06:00]} 20. Ke2 {[%emt 0:18:30]} Nd7 {[%emt 0:03:30]} 21. Bxd6+ {[%emt 0:05:30]} Kxd6 {[%emt 0:00:00]} 22. Na5 {[%emt 0:00:30]} Ke6 {[%emt 0:17:00]} 23. Nc6 {[%emt 0:02:30]} Re8 {[%emt 0:00:00]} 24. Na7 {[%emt 0:06:30]} Rxc1 {[%emt 0:06:39]} 25. Rxc1 Nb8 {[%emt 0:00:30]} 26. Nc6 {[%emt 0:02:00]} Kd7 {[%emt 0:02:04]} 27. Na5 {[%emt 0:09:37]} 1/2-1/2

[Event "Cesenatico Open 2019"]
[Site "Cesenatico"]
[Date "2019.09.03"]
[Round "3"]
[White "Voltolini, Giuseppe"]
[Black "Stromboli, Carlo"]
[Result "0-1"]
[ECO "E01"]
[WhiteElo "2115"]
[BlackElo "2270"]
[Annotator "ChessBase"]
[PlyCount "98"]
[EventDate "2019.08.09"]
[EventType "swiss"]
[EventCountry "ITA"]
[SourceTitle "playchess.com"]
[Source "ChessBase"]
[SourceQuality "1"]
[TimeControl "5400+30"]

1. d4 {[%clk} Nf6 {[%clk} 2. c4 {[%clk} e6 {[%clk} 3. g3 {[%clk} d5 {[%clk} 4. Nf3 {[%clk} Bb4+ 5. Bd2 {[%clk} Bd6 {[%clk} 6. Qc2 c6 {[%clk} 7. Bg2 {[%clk} Nbd7 {[%clk} 8. c5 {[%clk} Bc7 {[%clk} 9. Bf4 {[%clk} O-O {[%clk} 10. Nbd2 {[%clk} Re8 {[%emt 0:52:00]} 11. Qc3 {[%emt 0:43:30]} e5 {[%emt 0:19:30]} 12. dxe5 {[%emt 0:05:30]} Ne4 {[%emt 0:07:02]} 13. Nxe4 {[%emt 0:09:30]} dxe4 {[%emt 0:00:22]} 14. Nd4 {[%emt 0:03:30]} Bxe5 {[%emt 0:06:21]} 15. Bxe5 Rxe5 {[%emt 0:00:25]} 16. Nb3 {[%emt 0:05:00]} Qe7 {[%emt 0:00:00]} 17. Rc1 {[%emt 0:00:30]} Nf6 {[%clk} 18. O-O {[%emt 0:29:53]} Rh5 {[%emt 0:11:43]} 19. Rfd1 {[%emt 0:00:00]} Be6 {[%emt 0:01:06]} 20. f3 {[%emt 0:00:00]} Re8 {[%emt 0:00:00]} 21. Nd4 {[%emt 0:00:00]} Nd7 {[%emt 0:01:29]} 22. Nxe6 {[%emt 0:00:00]} Qxe6 {[%emt 0:00:16]} 23. Rd6 {[%emt 0:00:00]} Qe7 {[%emt 0:00:00]} 24. b4 {[%emt 0:00:00]} Nf6 {[%clk} 25. Qd4 {[%emt 0:00:00]} exf3 {[%emt 0:01:26]} 26. Bxf3 Re5 {[%emt 0:00:16]} 27. b5 {[%emt 0:00:00]} cxb5 {[%emt 0:00:00]} 28. Rb1 {[%emt 0:00:00]} Ne4 {[%emt 0:00:00]} 29. Rxb5 {[%emt 0:06:28]} Ng5 {[%emt 0:01:55]} 30. Rb2 {[%emt 0:00:00]} Nxf3+ {[%emt 0:00:00]} 31. exf3 {[%emt 0:00:00]} Re1+ {[%emt 0:00:49]} 32. Kg2 {[%emt 0:01:29]} Qg5 {[%emt 0:00:40]} 33. Qf2 {[%emt 0:00:00]} Rc1 {[%emt 0:00:00]} 34. Rc2 {[%emt 0:00:00]} Rb1 {[%emt 0:01:05]} 35. Rcd2 {[%emt 0:01:19]} h6 {[%emt 0:00:14]} 36. Re2 {[%emt 0:00:00]} Rc8 {[%emt 0:00:00]} 37. Rc2 {[%emt 0:00:00]} Qe5 {[%emt 0:01:04]} 38. Rd7 {[%emt 0:01:43]} Rb5 {[%emt 0:00:39]} 39. Qe2 {[%emt 0:00:00]} Rcxc5 {[%emt 0:00:00]} 40. Qd3 {[%emt 0:00:00]} Rxc2+ {[%emt 0:00:52]} 41. Qxc2 g6 {[%emt 0:00:00]} 42. Rxb7 {[%emt 0:00:00]} Rxb7 43. Qc8+ {[%emt 0:00:00]} Kg7 {[%emt 0:00:00]} 44. Qxb7 Qe2+ {[%emt 0:00:00]} 45. Kh3 {[%emt 0:00:00]} Qxa2 46. g4 {[%emt 0:00:00]} a5 {[%emt 0:00:00]} 47. Kg3 a4 {[%emt 0:00:00]} 48. h4 {[%emt 0:00:00]} a3 {[%emt 0:00:00]} 49. h5 {[%emt 0:00:00]} Qb2 {[%emt 0:00:00]} 0-1

[Event "Cesenatico Open 2019"]
[Site "Cesenatico"]
[Date "2019.09.03"]
[Round "3"]
[White "Marzano, Carlo"]
[Black "Loiacono, Leonardo"]
[Result "1/2-1/2"]
[ECO "D56"]
[WhiteElo "2109"]
[BlackElo "2293"]
[Annotator "NA"]
[PlyCount "100"]
[EventDate "2019.08.09"]
[EventType "swiss"]
[EventCountry "ITA"]
[SourceTitle "playchess.com"]
[Source "ChessBase"]
[SourceQuality "1"]
[TimeControl "5400+30"]

1. d4 {[%clk} d5 {[%clk} 2. c4 {[%clk} e6 {[%clk} 3. Nc3 {[%clk} Be7 {[%clk} 4. Nf3 {[%clk} Nf6 {[%clk} 5. Bg5 {[%clk} h6 {[%clk} 6. Bh4 O-O {[%clk} 7. e3 {[%clk} Nbd7 {[%clk} 8. cxd5 Nxd5 {[%clk} 9. Bxe7 {[%clk} Qxe7 10. Rc1 {[%clk} Nxc3 {[%clk} 11. Rxc3 {[%clk} c6 12. a3 {[%clk} e5 {[%clk} 13. dxe5 Nxe5 {[%clk} 14. Nxe5 {[%clk} Qxe5 {[%clk} 15. Bd3 Be6 {[%clk} 16. Qe2 {[%emt 0:44:00]} f5 {[%clk} 17. O-O {[%emt 0:03:30]} Rad8 {[%clk} 18. Bc4 {[%emt 0:11:30]} Bxc4 19. Qxc4+ {[%emt 0:04:30]} Kh8 {[%clk} 20. Rc2 {[%clk} Rd5 {[%clk} 21. Qb4 {[%emt 0:16:00]} Rf7 {[%clk} 22. Rd2 {[%emt 0:00:30]} a5 {[%clk} 23. Rxd5 {[%emt 0:00:30]} Qxd5 24. Qc3 {[%emt 0:01:37]} Rd7 {[%clk} 25. h3 {[%emt 0:01:25]} Kh7 {[%clk} 26. Rc1 {[%emt 0:02:02]} Qd2 {[%clk} 27. Qc2 {[%clk} g6 {[%clk} 28. h4 {[%emt 0:07:14]} h5 {[%clk} 29. g3 {[%emt 0:00:30]} Rd5 {[%clk} 30. Kg2 {[%emt 0:00:12]} Kg7 31. Kg1 {[%emt 0:01:24]} Kf7 {[%clk} 32. Kg2 {[%clk} Ke7 {[%clk} 33. Kg1 {[%emt 0:02:20]} Kd6 {[%emt 0:49:30]} 34. Kg2 {[%emt 0:00:56]} c5 {[%emt 0:02:30]} 35. a4 {[%emt 0:01:09]} Qxc2 36. Rxc2 {[%emt 0:00:02]} Rd1 {[%emt 0:04:00]} 37. Kf3 {[%emt 0:00:00]} Ra1 {[%emt 0:00:00]} 38. b3 {[%emt 0:03:19]} Rb1 {[%emt 0:02:00]} 39. Rc3 {[%emt 0:00:12]} Rb2 {[%emt 0:00:30]} 40. Kf4 {[%emt 0:00:56]} Rxf2+ {[%emt 0:02:30]} 41. Kg5 {[%emt 0:00:02]} b6 {[%emt 0:03:30]} 42. Kxg6 {[%emt 0:00:00]} Rf3 {[%emt 0:00:30]} 43. Kf6 {[%emt 0:06:20]} Kd5 {[%emt 0:01:30]} 44. Rd3+ {[%emt 0:00:37]} Ke4 {[%clk} 45. Rd6 {[%emt 0:00:00]} Kxe3 {[%clk} 46. Rxb6 {[%emt 0:00:00]} Kd4 {[%emt 0:00:00]} 47. Rb5 Rxg3 {[%emt 0:00:00]} 48. Kxf5 {[%emt 0:00:00]} Rg4 {[%emt 0:34:46]} 49. Rxa5 {[%emt 0:00:00]} Rxh4 {[%emt 0:00:00]} 50. Ra8 {[%emt 0:00:00]} Kc3 {[%emt 0:00:00]} 1/2-1/2

[Event "Cesenatico Open 2019"]
[Site "Cesenatico"]
[Date "2019.09.04"]
[Round "4"]
[White "Di Benedetto, Edoardo"]
[Black "Dragojlovic, Andjelko"]
[Result "1/2-1/2"]
[ECO "E60"]
[WhiteElo "2405"]
[BlackElo "2293"]
[Annotator "ChessBase"]
[PlyCount "22"]
[EventDate "2019.09.01"]
[EventType "swiss"]
[EventCountry "ITA"]
[SourceTitle "playchess.com"]
[Source "ChessBase"]
[SourceQuality "1"]
[TimeControl "40/6000:900"]

1. d4 {[%emt 0:00:00]} g6 {[%emt 0:08:00]} 2. c4 {[%emt 0:00:00]} Bg7 {[%emt 0:00:00]} 3. g3 {[%emt 0:00:00]} c5 {[%emt 0:04:00]} 4. Nf3 {[%emt 0:01:00]} cxd4 5. Nxd4 {[%emt 0:00:00]} Nc6 {[%emt 0:01:00]} 6. Nb3 d6 {[%emt 0:00:00]} 7. Bg2 {[%emt 0:00:00]} Nf6 {[%emt 0:02:00]} 8. Nc3 {[%emt 0:15:00]} O-O {[%emt 0:01:00]} 9. O-O {[%emt 0:00:00]} a5 {[%emt 0:05:00]} 10. Nd4 {[%emt 0:00:00]} Nxd4 {[%emt 0:02:00]} 11. Qxd4 {[%emt 0:00:00]} Be6 {[%emt 0:00:00]} 1/2-1/2

[Event "Cesenatico Open 2019"]
[Site "Cesenatico"]
[Date "2019.09.04"]
[Round "4"]
[White "Loiacono, Leonardo"]
[Black "Dobboletta, Alex"]
[Result "0-1"]
[ECO "E36"]
[WhiteElo "2293"]
[BlackElo "2176"]
[Annotator "NA"]
[PlyCount "76"]
[EventDate "2019.09.01"]
[EventType "swiss"]
[EventCountry "ITA"]
[SourceTitle "playchess.com"]
[Source "ChessBase"]
[SourceQuality "1"]
[TimeControl "40/6000:900"]

1. d4 {[%emt 0:00:00]} Nf6 {[%emt 0:10:00]} 2. c4 {[%emt 0:00:00]} e6 {[%emt 0:00:00]} 3. Nc3 {[%emt 0:00:00]} Bb4 {[%emt 0:00:00]} 4. Qc2 {[%emt 0:00:00]} O-O {[%emt 0:00:00]} 5. a3 {[%emt 0:00:00]} Bxc3+ {[%emt 0:00:00]} 6. Qxc3 {[%emt 0:10:00]} d5 {[%emt 0:00:00]} 7. Bg5 {[%emt 0:00:00]} c5 {[%emt 0:00:00]} 8. dxc5 d4 {[%emt 0:00:00]} 9. Qg3 {[%emt 0:00:00]} Nbd7 {[%emt 0:00:00]} 10. Qd6 {[%emt 0:09:00]} e5 {[%emt 0:13:00]} 11. Bxf6 {[%emt 0:03:00]} gxf6 12. e3 {[%emt 0:11:00]} Re8 {[%emt 0:06:00]} 13. O-O-O {[%emt 0:02:00]} Re6 {[%emt 0:06:00]} 14. Qd5 {[%emt 0:10:00]} dxe3 {[%emt 0:00:00]} 15. fxe3 {[%emt 0:00:00]} Qf8 {[%emt 0:01:00]} 16. Nh3 {[%emt 0:07:00]} Nxc5 {[%emt 0:15:00]} 17. Qd8 {[%emt 0:00:00]} Rc6 {[%emt 0:00:00]} 18. Qxf8+ {[%emt 0:01:00]} Kxf8 {[%emt 0:00:00]} 19. Rd8+ {[%emt 0:00:00]} Ke7 {[%emt 0:00:00]} 20. Rd1 Ne4 {[%emt 0:00:00]} 21. Rg1 {[%emt 0:01:00]} Be6 {[%emt 0:00:00]} 22. Kb1 {[%emt 0:01:00]} Bxc4 {[%emt 0:02:00]} 23. Bxc4 {[%emt 0:00:00]} Rxc4 24. Rgf1 {[%emt 0:00:00]} Rg8 {[%emt 0:26:00]} 25. g3 {[%emt 0:25:00]} h5 {[%emt 0:01:00]} 26. Nf2 {[%emt 0:00:00]} Nxf2 {[%emt 0:01:49]} 27. Rxf2 {[%emt 0:00:00]} h4 {[%emt 0:00:00]} 28. gxh4 {[%emt 0:00:00]} Rh8 29. Rg1 {[%emt 0:00:00]} Rhxh4 {[%emt 0:00:23]} 30. Rg8 Rc7 {[%emt 0:01:50]} 31. Rb8 {[%emt 0:00:00]} Ke6 {[%emt 0:00:00]} 32. Re8+ {[%emt 0:00:00]} Re7 {[%emt 0:00:02]} 33. Rd8 {[%emt 0:05:44]} f5 {[%emt 0:01:40]} 34. Rfd2 {[%emt 0:00:00]} f4 {[%emt 0:00:28]} 35. e4 {[%emt 0:00:00]} f5 {[%emt 0:00:00]} 36. R2d6+ {[%emt 0:00:00]} Kf7 37. exf5 {[%emt 0:00:00]} f3 {[%emt 0:00:40]} 38. f6 {[%emt 0:00:43]} Rc7 {[%emt 0:00:00]} 0-1